Workbook

Sheet Лист1
A1: Школа | C1: МБОУ "Школа №57 г.Казани" | F1: Согласовано: | G1: должность | H1: Директор
A2: Типовое примерное меню приготавливаемых блюд | G2: фамилия | H2: Т.И.Сагдеев
A3: Возрастная категория | E3: 7-11 лет | G3: дата | H3: 19 | I3: 10 | J3: 2023
H4: день | I4: месяц | J4: год
A5: Неделя | B5: День недели | C5: Прием пищи | D5: Раздел меню | E5: Блюда | F5: Вес блюда, г | G5: Белки | H5: Жиры | I5: Углеводы | J5: Калорийность | K5: № рецептуры | L5: Цена
A6: 1 | B6: 1 | C6: Завтрак | D6: гор.блюдо | E6: Грудка куриная в томатном соусе | F6: 90 | G6: 10.45 | H6: 6.5 | I6: 3.27 | J6: 113 | K6: Акт 2021г
D7: гор.блюдо | E7: Рис отварной | F7: 140 | G7: 3.57 | H7: 5.07 | I7: 37.34 | J7: 209 | K7: №304/2015
D8: гор.напиток | E8: Напиток из замороженой черной смородины | F8: 200 | G8: 0.1 | H8: 0.04 | I8: 10.7 | J8: 44 | K8: ТТК 2022г
D9: хлеб | E9: Хлебная корзина (хлеб пшеничный/хлеб ржано-пшеничный) | F9: 20 | G9: 1.25 | H9: 1.08 | I9: 9.42 | J9: 46 | K9: ТТК
D10: закуска | E10: Салат-бар в ассортименте | F10: 60 | G10: 1.62 | H10: 6.1 | I10: 6.92 | J10: 90 | K10: ТТК 2023г
D13: итого | F13: =SUM(F6:F12) -> 510 | G13: =SUM(G6:G12) -> 16.99 | H13: 18.79 | I13: 67.65 | J13: 502 | L13: 66.8
A14: =A6 -> 1 | B14: =B6 -> 1 | C14: Обед | D14: закуска
D15: 1 блюдо
D16: 2 блюдо
D17: гарнир
D18: напиток
D19: хлеб бел.
D20: хлеб черн.
D23: итого | F23: =SUM(F14:F22) -> 0 | G23: =SUM(G14:G22) -> 0 | H23: 0 | I23: 0 | J23: 0
A24: =A6 -> 1 | B24: =B6 -> 1 | C24: Итого за день: | F24: =F13+F23 -> 510 | G24: =G13+G23 -> 16.99 | H24: 18.79 | I24: 67.65 | J24: 502 | L24: 66.8
A25: 1 | B25: 2 | C25: Завтрак | D25: гор.блюдо | E25: Жаркое по-домашнему | F25: 160 | G25: 8.64 | H25: 7.5 | I25: 21.63 | J25: 189 | K25: ТТК 2023г
D26: гор.напиток | E26: Напиток из вишни | F26: 200 | G26: 0.12 | H26: 0.9 | I26: 30.8 | J26: 131 | K26: ТТК 2023г
D27: хлеб | E27: Хлебная корзина (хлеб пшеничный/хлеб ржано-пшеничный) | F27: 20 | G27: 1.25 | H27: 1.08 | I27: 9.42 | J27: 46 | K27: ТТК
D28: фрукты | E28: Плоды свежие (яблоки) | F28: 100 | G28: 0.4 | H28: 0.4 | I28: 9.8 | J28: 47 | K28: №338/2015г
D29: закуска | E29: Салат-бар в ассортименте | F29: 60 | G29: 5.43 | H29: 6.65 | I29: 6.78 | J29: 108 | K29: ТТК 2023г
D32: итого | F32: =SUM(F25:F31) -> 540 | G32: =SUM(G25:G31) -> 15.84 | I32: =SUM(I25:I31) -> 78.43 | J32: =SUM(J25:J31) -> 521 | L32: 66.8
A33: =A25 -> 1 | B33: =B25 -> 2 | C33: Обед | D33: закуска
D34: 1 блюдо
D35: 2 блюдо
D36: гарнир
D37: напиток
D38: хлеб бел.
D39: овощи
D42: итого | F42: =SUM(F33:F41) -> 0 | G42: =SUM(G33:G41) -> 0 | H42: =SUM(H33:H41) -> 0 | I42: =SUM(I33:I41) -> 0 | J42: =SUM(J33:J41) -> 0
A43: =A25 -> 1 | B43: =B25 -> 2 | C43: Итого за день: | F43: =F32+F42 -> 540 | G43: =G32+G42 -> 15.84 | H43: =H32+H42 -> 0 | I43: =I32+I42 -> 78.43 | J43: =J32+J42 -> 521 | L43: 66.8
A44: 1 | B44: 3 | C44: Завтрак | D44: гор.блюдо | E44: Сосиски отварные | F44: 100 | G44: 8.6 | H44: 4.8 | I44: 11.75 | J44: 125 | K44: №243/2015г
D45: гор.блюдо | E45: Макароны отварныеи с сыром | F45: 140 | G45: 5.39 | H45: 6.65 | I45: 29.98 | J45: 201 | K45: ТТК 2019г
D46: гор.напиток | E46: Напиток яблочный | F46: 200 | G46: 0.1 | H46: 0.1 | I46: 12.4 | J46: 52 | K46: №701/2004
D47: хлеб | E47: Хлебная корзина (хлеб пшеничный/хлеб ржано-пшеничный) | F47: 20 | G47: 1.25 | H47: 1.08 | I47: 9.42 | J47: 46 | K47: ТТК
D48: закуска | E48: Салат-бар в ассортименте | F48: 60 | G48: 2.53 | H48: 6.1 | I48: 15.07 | J48: 125 | K48: ТТК 2023г
D51: итого | F51: =SUM(F44:F50) -> 520 | G51: =SUM(G44:G50) -> 17.87 | H51: =SUM(H44:H50) -> 18.73 | I51: =SUM(I44:I50) -> 78.62 | J51: =SUM(J44:J50) -> 549 | L51: 66.8
A52: =A44 -> 1 | B52: =B44 -> 3 | C52: Обед | D52: закуска
D53: 1 блюдо
D54: 2 блюдо
D55: гарнир
D56: напиток
D57: хлеб бел.
D58: хлеб черн.
D61: итого | F61: =SUM(F52:F60) -> 0 | G61: =SUM(G52:G60) -> 0 | H61: =SUM(H52:H60) -> 0 | I61: =SUM(I52:I60) -> 0 | J61: =SUM(J52:J60) -> 0
A62: =A44 -> 1 | B62: =B44 -> 3 | C62: Итого за день: | F62: =F51+F61 -> 520 | G62: =G51+G61 -> 17.87 | H62: =H51+H61 -> 18.73 | I62: =I51+I61 -> 78.62 | J62: =J51+J61 -> 549 | L62: 66.8
A63: 1 | B63: 4 | C63: Завтрак | D63: гор.блюдо | E63: Плов с куриными грудками | F63: 160 | G63: 13.14 | H63: 12 | I63: 34 | J63: 297 | K63: ТТК 2023г
D64: напиток | E64: Сок | F64: 180 | G64: 0.9 | H64: 0.18 | I64: 18.2 | J64: 83 | K64: ТТК 2022г
D65: хлеб | E65: Хлебная корзина (хлеб пшеничный/хлеб ржано-пшеничный) | F65: 20 | G65: 1.25 | H65: 1.08 | I65: 9.42 | J65: 46 | K65: ТТК
D66: фрукты | E66: Плоды свежие (яблоки) | F66: 100 | G66: 0.4 | H66: 0.4 | I66: 9.8 | J66: 47 | K66: № 338/2015г
D67: закуска | E67: Салат-бар в ассортименте | F67: 60 | G67: 1.95 | H67: 6.18 | I67: 12.3 | J67: 112 | K67: ТТК 2023г
D70: итого | F70: =SUM(F63:F69) -> 520 | G70: =SUM(G63:G69) -> 17.64 | H70: =SUM(H63:H69) -> 19.84 | I70: =SUM(I63:I69) -> 83.72 | J70: 585 | L70: 66.8
A71: =A63 -> 1 | B71: =B63 -> 4 | C71: Обед | D71: закуска
D72: 1 блюдо
D73: 2 блюдо
D74: фрукты
D75: напиток
D76: хлеб бел.
D77: хлеб черн.
D80: итого | F80: =SUM(F71:F79) -> 0 | G80: =SUM(G71:G79) -> 0 | H80: =SUM(H71:H79) -> 0 | I80: =SUM(I71:I79) -> 0 | J80: =SUM(J71:J79) -> 0
A81: =A63 -> 1 | B81: =B63 -> 4 | C81: Итого за день: | F81: =F70+F80 -> 520 | G81: =G70+G80 -> 17.64 | H81: =H70+H80 -> 19.84 | I81: =I70+I80 -> 83.72 | L81: 66.8
A82: 1 | B82: 5 | C82: Завтрак | D82: гор.блюдо | E82: Биточки рыбные из фарша минтая | F82: 90 | G82: 9.8 | H82: 2.01 | I82: 10.2 | J82: 98 | K82: ТТК 2021г
D83: гор.блюдо | E83: Пюре картофельное с маслом сливочным | F83: 145 | G83: 3.1 | H83: 7.97 | I83: 20.59 | J83: 169 | K83: №312/215г
D84: гор.напиток | E84: Напиток из шиповника | F84: 200 | G84: 0.01 | I84: 10.18 | J84: 40 | K84: ТТК 2021г
D85: хлеб | E85: Хлебная корзина (хлеб пшеничный/хлеб ржано-пшеничный) | F85: 20 | G85: 1.25 | H85: 1.08 | I85: 9.42 | J85: 46 | K85: ТТК
D86: фрукты | E86: Салат-бар в ассортименте | F86: 60 | G86: 3.59 | H86: 6.1 | I86: 18 | J86: 141 | K86: ТТК 2023г
D89: итого | F89: =SUM(F82:F88) -> 515 | G89: =SUM(G82:G88) -> 17.75 | H89: =SUM(H82:H88) -> 17.16 | I89: =SUM(I82:I88) -> 68.39 | J89: =SUM(J82:J88) -> 494 | L89: 66.8
A90: =A82 -> 1 | B90: =B82 -> 5 | C90: Обед | D90: закуска
D91: 1 блюдо
D92: 2 блюдо
D93: гарнир
D94: напиток
D95: хлеб бел.
D96: хлеб черн.
D99: итого | F99: =SUM(F90:F98) -> 0 | G99: =SUM(G90:G98) -> 0 | H99: =SUM(H90:H98) -> 0 | I99: =SUM(I90:I98) -> 0 | J99: =SUM(J90:J98) -> 0
A100: =A82 -> 1 | B100: =B82 -> 5 | C100: Итого за день: | F100: =F89+F99 -> 515 | G100: =G89+G99 -> 17.75 | H100: =H89+H99 -> 17.16 | I100: =I89+I99 -> 68.39 | J100: =J89+J99 -> 494 | L100: 66.8
A101: 2 | B101: 1 | C101: Завтрак | D101: гор.блюдо | E101: Котлеты "Столичные" | F101: 90 | G101: 8.1 | H101: 4.05 | I101: 3.4 | J101: 83 | K101: ТТК 2023г
D102: гор.блюдо | E102: Макароны отварные с сыром | F102: 140 | G102: 5.39 | H102: 6.65 | I102: 29.98 | J102: 201 | K102: ТТК 2019г
D103: гор.напиток | E103: Напиток из замороженой черной смородины | F103: 200 | G103: 0.1 | H103: 0.04 | I103: 10.7 | J103: 44 | K103: ТТК 2022г
D104: хлеб | E104: Хлебная корзина (хлеб пшеничный/хлеб ржано-пшеничный) | F104: 20 | G104: 1.25 | H104: 1.08 | I104: 9.42 | J104: 46 | K104: ТТК
D105: закуска | E105: Салат-бар в ассортименте | F105: 60 | G105: 1.62 | H105: 6.1 | I105: 12.9 | J105: 113 | K105: ТТК 2023г
D108: итого | F108: =SUM(F101:F107) -> 510 | G108: =SUM(G101:G107) -> 16.46 | H108: 17.92 | I108: 66.4 | J108: 487 | L108: 66.8
A109: =A101 -> 2 | B109: =B101 -> 1 | C109: Обед | D109: закуска
D110: 1 блюдо
D111: 2 блюдо
D112: гарнир
D113: напиток
D114: хлеб бел.
D115: хлеб черн.
D118: итого | F118: =SUM(F109:F117) -> 0 | G118: =SUM(G109:G117) -> 0 | H118: 0 | I118: 0 | J118: 0
A119: =A101 -> 2 | B119: =B101 -> 1 | C119: Итого за день: | F119: =F108+F118 -> 510 | G119: =G108+G118 -> 16.46 | H119: =H108+H118 -> 17.92 | I119: =I108+I118 -> 66.4 | J119: =J108+J118 -> 487 | L119: 66.8
A120: 2 | B120: 2 | C120: Завтрак | D120: гор.блюдо | E120: Жаркое из птицы (грудки куриные) | F120: 160 | G120: 12.98 | H120: 10.63 | I120: 28.5 | J120: 262 | K120: ТТК 2023г
D121: гор.напиток | E121: Напиток из вишни | F121: 200 | G121: 0.12 | H121: 0.9 | I121: 30.8 | J121: 131 | K121: ТТК 2023г
D122: хлеб | E122: Хлебная корзина (хлеб пшеничный/хлеб ржано-пшеничный) | F122: 20 | G122: 1.25 | H122: 1.08 | I122: 9.42 | J122: 46 | K122: ТТК
D123: фрукты | E123: Плоды свежие (яблоки) | F123: 100 | G123: 0.4 | H123: 0.4 | I123: 9.8 | J123: 47 | K123: №338/2015г
D124: закуска | E124: Салат-бар в ассортименте | F124: 60 | G124: 5.43 | H124: 6.65 | I124: 6.78 | J124: 108 | K124: ТТК 2023г
D127: итого | F127: =SUM(F120:F126) -> 540 | G127: =SUM(G120:G126) -> 20.18 | H127: 19.66 | I127: 85.3 | J127: 594 | L127: 66.8
A128: =A120 -> 2 | B128: =B120 -> 2 | C128: Обед | D128: закуска
D129: 1 блюдо
D130: 2 блюдо
D131: фрукты
D132: напиток
D133: хлеб бел.
D134: хлеб черн.
D137: итого | F137: =SUM(F128:F136) -> 0 | G137: =SUM(G128:G136) -> 0 | H137: 0 | I137: 0 | J137: 0
A138: =A120 -> 2 | B138: =B120 -> 2 | C138: Итого за день: | F138: =F127+F137 -> 540 | G138: =G127+G137 -> 20.18 | H138: =H127+H137 -> 19.66 | I138: =I127+I137 -> 85.3 | J138: =J127+J137 -> 594 | L138: 66.8
A139: 2 | B139: 3 | C139: Завтрак | D139: гор.блюдо | E139: Сосиски отварные | F139: 100 | G139: 8.6 | H139: 4.8 | I139: 11.75 | J139: 125 | K139: №243/2015г
D140: гор.блюдо | E140: Каша гречневая вязкая с маслом | F140: 145 | G140: 3.31 | H140: 7.95 | I140: 20.59 | J140: 167 | K140: №303/2015г
D141: гор.напиток | E141: Напиток яблочный | F141: 200 | G141: 0.1 | H141: 0.1 | I141: 12.4 | J141: 52 | K141: №701/2004г
D142: хлеб | E142: Хлебная корзина (хлеб пшеничный/хлеб ржано-пшеничный) | F142: 20 | G142: 1.25 | H142: 1.08 | I142: 9.42 | J142: 46 | K142: ТТК
D143: закуска | E143: Салат-бар в ассортименте | F143: 60 | G143: 2.53 | H143: 6.1 | I143: 15.07 | J143: 125 | K143: ТТК 2023г
D146: итого | F146: =SUM(F139:F145) -> 525 | G146: =SUM(G139:G145) -> 15.79 | H146: 20.03 | I146: 69.23 | J146: 515 | L146: 66.8
A147: =A139 -> 2 | B147: =B139 -> 3 | C147: Обед | D147: закуска
D148: 1 блюдо
D149: 2 блюдо
D150: гарнир
D151: напиток
D152: хлеб бел.
D153: хлеб черн.
D156: итого | F156: =SUM(F147:F155) -> 0 | G156: =SUM(G147:G155) -> 0 | H156: 0 | I156: 0 | J156: 0
A157: =A139 -> 2 | B157: =B139 -> 3 | C157: Итого за день: | F157: =F146+F156 -> 525 | G157: =G146+G156 -> 15.79 | H157: =H146+H156 -> 20.03 | I157: =I146+I156 -> 69.23 | J157: =J146+J156 -> 515 | L157: 66.8
A158: 2 | B158: 4 | C158: Завтрак | D158: гор.блюдо | E158: Плов с говядиной | F158: 160 | G158: 12.2 | H158: 10.6 | I158: 23.09 | J158: 237 | K158: ТТК 2021г
D159: гор.напиток | E159: Напиток из замороженой черной смородины | F159: 200 | G159: 0.1 | H159: 0.04 | I159: 10.7 | J159: 44 | K159: ТТК 2022г
D160: хлеб | E160: Хлебная корзина (хлеб пшеничный/хлеб ржано-пшеничный) | F160: 20 | G160: 1.25 | H160: 1.08 | I160: 9.42 | J160: 46 | K160: ТТК
D161: фрукты | E161: Плоды свежие (яблоки) | F161: 100 | G161: 0.4 | H161: 0.4 | I161: 9.8 | J161: 47 | K161: №338/2015г
D162: закуска | E162: Салат-бар в ассортименте | F162: 60 | G162: 1.95 | H162: 6.18 | I162: 12.3 | J162: 112 | K162: ТТК 2023г
D165: итого | F165: =SUM(F158:F164) -> 540 | G165: =SUM(G158:G164) -> 15.9 | H165: 18.3 | I165: 65.31 | J165: 486 | L165: 66.8
A166: =A158 -> 2 | B166: =B158 -> 4 | C166: Обед | D166: закуска
D167: 1 блюдо
D168: 2 блюдо
D169: фрукты
D170: напиток
D171: хлеб бел.
D172: хлеб черн.
D175: итого | F175: =SUM(F166:F174) -> 0 | G175: =SUM(G166:G174) -> 0 | H175: 0 | I175: 0 | J175: 0 | L175: =SUM(L166:L174) -> 0
A176: =A158 -> 2 | B176: =B158 -> 4 | C176: Итого за день: | F176: =F165+F175 -> 540 | G176: =G165+G175 -> 15.9 | H176: =H165+H175 -> 18.3 | I176: =I165+I175 -> 65.31 | J176: =J165+J175 -> 486 | L176: 66.8
A177: 2 | B177: 5 | C177: Завтрак | D177: гор.блюдо | E177: Ежики с мясом и рисом в соусе томатном | F177: 100 | G177: 8.2 | H177: 5 | I177: 10.23 | J177: 119 | K177: ТТК 2020г
D178: гор.блюдо | E178: Пюре картофельное | F178: 140 | G178: 3.06 | H178: 4.35 | I178: 20.56 | J178: 136 | K178: №312/2015г
D179: напиток | E179: Сок | F179: 180 | G179: 0.9 | H179: 0.18 | I179: 18.2 | J179: 83 | K179: ТТК 2022г
D180: хлеб | E180: Хлебная корзина (хлеб пшеничный/хлеб ржано-пшеничный) | F180: 20 | G180: 1.25 | H180: 1.08 | I180: 9.42 | J180: 46 | K180: ТТК
D181: закуска | E181: Салат-бар в ассортименте | F181: 60 | G181: 3.59 | H181: 6.1 | I181: 18 | J181: 141 | K181: ТТК 2023г
D184: итого | F184: 500 | G184: =SUM(G177:G183) -> 17 | H184: 16.71 | I184: 76.41 | J184: 525 | L184: 66.8
A185: =A177 -> 2 | B185: =B177 -> 5 | C185: Обед | D185: закуска
D186: 1 блюдо
D187: 2 блюдо
D188: гарнир
D189: напиток
D190: хлеб бел.
D191: хлеб черн.
D194: итого | F194: =SUM(F185:F193) -> 0 | G194: =SUM(G185:G193) -> 0 | H194: 0 | I194: 0 | J194: 0 | L194: =SUM(L185:L193) -> 0
A195: =A177 -> 2 | B195: =B177 -> 5 | C195: Итого за день: | F195: =F184+F194 -> 500 | G195: =G184+G194 -> 17 | H195: =H184+H194 -> 16.71 | I195: =I184+I194 -> 76.41 | J195: =J184+J194 -> 525 | L195: 66.8
C196: Среднее значение за период: | F196: =(F24+F43+F62+F81+F100+F119+F138+F157+F176+F195)/(IF(F24=0,0,1)+IF(F43=0,0,1)+IF(F62=0,0,1)+IF(F81=0,0,1)+IF(F100=0,0,1)+IF(F119=0,0,1)+IF(F138=0,0,1)+IF(F157=0,0,1)+IF(F176=0,0,1)+IF(F195=0,0,1)) -> 522 | G196: =(G24+G43+G62+G81+G100+G119+G138+G157+G176+G195)/(IF(G24=0,0,1)+IF(G43=0,0,1)+IF(G62=0,0,1)+IF(G81=0,0,1)+IF(G100=0,0,1)+IF(G119=0,0,1)+IF(G138=0,0,1)+IF(G157=0,0,1)+IF(G176=0,0,1)+IF(G195=0,0,1)) -> 17.142 | H196: 18.57111111 | I196: 73.946 | L196: =(L24+L43+L62+L81+L100+L119+L138+L157+L176+L195)/(IF(L24=0,0,1)+IF(L43=0,0,1)+IF(L62=0,0,1)+IF(L81=0,0,1)+IF(L100=0,0,1)+IF(L119=0,0,1)+IF(L138=0,0,1)+IF(L157=0,0,1)+IF(L176=0,0,1)+IF(L195=0,0,1)) -> 66.8
